bitfinex-derivatives/quotes_ETHF0:USTF0_20241023
["timestamp","ask_amount","ask_price","bid_price","bid_amount"]
[1729699649222,0.39456,2536.1,2536.0,3.2078]
[1729699649726,4.24753211,2536.1,2536.0,3.60237]
[1729699650019,3.85297211,2536.1,2536.0,3.60237]
[1729699650216,0.39456,2536.1,2536.0,3.2078]
[1729699650417,0.39456,2536.1,2536.0,3.60237]
[1729699650616,0.39456,2536.1,2536.0,6.2878]
[1729699650617,4.17248213,2536.1,2536.0,6.2878]
[1729699650926,4.17248213,2536.1,2536.0,6.68237]
[1729699651215,0.39455,2536.2,2536.1,0.39456]
[1729699651427,0.39455,2536.2,2536.1,1.0199]
[1729699651624,0.39455,2536.2,2536.1,1.41446]
[1729699651829,0.39455,2536.2,2536.1,1.0199]
[1729699652119,0.39455,2536.2,2536.1,1.41446]
[1729699652523,0.39455,2536.2,2536.1,1.0199]
[1729699652721,0.39455,2536.2,2536.1,1.41446]
[1729699653223,0.39454,2536.2,2536.1,1.41444]
[1729699653623,0.39454,2536.2,2536.1,2.44004]
[1729699654020,0.39456,2536.1,2536.0,3.2078]
[1729699654325,4.71378957,2536.1,2536.0,3.2078]
[1729699655218,4.71378957,2536.1,2536.0,3.60237]
[1729699655420,4.71378957,2536.1,2536.0,3.2078]
[1729699656222,4.71378957,2536.1,2536.0,3.60237]
[1729699656520,4.71378957,2536.1,2536.0,0.39457]
[1729699656822,0.3946,2535.9,2535.8,0.39458]
[1729699659324,0.3946,2535.8,2535.7,3.2078]
[1729699659826,4.16333343,2535.8,2535.4,40.8]
[1729699660036,4.16333343,2535.8,2535.3,3.08]
[1729699660037,0.39468,2535.3,2535.2,2.0155]
[1729699660213,0.98665,2535.5,2535.0,3.08]
[1729699660420,0.39473,2535.0,2534.9,1.0037]
[1729699660616,0.39473,2535.0,2534.9,1.39844]
[1729699661025,0.39478,2534.8,2534.7,0.39476]
[1729699661216,0.39478,2534.7,2534.6,44.40259]
[1729699662831,0.39478,2534.7,2534.6,41.19479]
[1729699663423,0.39478,2534.8,2534.7,0.39477]
[1729699663623,0.39478,2534.7,2534.6,41.19478]
[1729699663825,0.39478,2534.7,2534.6,40.8]
[1729699664129,4.65276039,2534.7,2534.6,40.8]
[1729699665334,4.25798039,2534.7,2534.6,44.27479]
[1729699665534,4.65276039,2534.7,2534.6,43.88]
[1729699665734,0.39478,2534.7,2534.6,43.88]
[1729699666236,4.5220106,2534.7,2534.6,51.42819]
[1729699666428,0.39473,2535.0,2534.6,51.0334]
[1729699666627,0.39473,2535.0,2534.9,3.2078]
[1729699666835,0.39473,2535.0,2534.9,3.60254]
[1729699667037,4.5220106,2535.0,2534.9,3.60254]
[1729699667536,4.9167406,2535.0,2534.9,3.2078]
[1729699668028,4.9167406,2535.0,2534.9,3.60254]
[1729699668229,4.9167406,2535.0,2534.6,44.0078]
[1729699668536,4.9167506,2535.0,2534.8,3.47475]
[1729699668726,4.5220106,2535.0,2534.9,0.39474]
[1729699669334,4.9167406,2535.0,2534.9,0.39474]
[1729699669729,4.5220106,2535.0,2534.9,0.39474]
[1729699669932,4.5220106,2535.0,2534.9,3.60254]
[1729699670636,0.2868915,2581.2,2534.9,6.2878]
[1729699670637,24.18464,2536.0,2534.9,6.2878]
[1729699670934,0.39461,2535.8,2535.7,0.39461]
[1729699671138,4.36233518,2535.9,2535.6,3.47463]
[1729699671139,0.39462,2535.7,2535.6,3.47463]
[1729699671338,0.39462,2535.7,2535.6,40.8]
[1729699671535,4.9194945,2535.7,2535.6,40.8]
[1729699671748,0.39468,2535.3,2535.2,3.2078]
[1729699672045,0.39471,2535.1,2535.0,3.08]
[1729699672251,0.39471,2535.1,2535.0,40.8]
[1729699672449,4.56842365,2535.1,2535.0,40.8]
[1729699673252,4.56842365,2535.1,2535.0,43.88]
[1729699673657,4.56842365,2535.1,2535.0,44.27473]
[1729699673856,4.56842365,2535.1,2535.0,43.88]
[1729699674357,4.56842365,2535.1,2535.0,44.27473]
[1729699675256,4.17371365,2535.1,2535.0,44.27473]
[1729699675667,4.23659887,2535.4,2535.1,0.3947]
[1729699675880,4.63130887,2535.1,2535.0,44.27472]
[1729699676265,0.39471,2535.1,2535.0,44.27472]
[1729699676470,4.55783175,2535.1,2535.0,44.27472]
[1729699676962,4.55783175,2535.1,2535.0,43.88]
[1729699677158,4.55783175,2535.1,2535.0,3.08]
[1729699677355,0.39473,2535.0,2534.9,3.2078]
[1729699677551,3.57453,2535.0,2534.9,3.2078]
[1729699677757,7.90188006,2535.0,2534.9,3.2078]
[1729699678860,0.39474,2534.9,2534.8,40.8]
[1729699679257,0.39478,2534.7,2534.6,3.60258]
[1729699679762,0.39477,2534.8,2534.7,0.39477]
[1729699680067,4.7340783,2534.8,2534.7,0.39477]
[1729699680265,4.7340783,2534.8,2534.7,3.47477]
[1729699680266,4.3393083,2534.8,2534.7,3.47477]
[1729699680456,4.7340683,2534.8,2534.7,3.47477]
[1729699680655,0.39476,2534.8,2534.7,3.47477]
[1729699681062,4.7340683,2534.8,2534.7,3.47477]
[1729699681264,4.3393083,2534.8,2534.7,3.47477]
[1729699681458,4.7340683,2534.8,2534.7,3.47477]
[1729699681657,0.39476,2534.8,2534.7,3.47477]
[1729699681866,4.82610162,2534.8,2534.7,3.47477]
[1729699682163,0.39475,2534.9,2534.7,3.08]
[1729699682355,0.39475,2534.9,2534.8,0.39476]
[1729699682556,4.63253923,2534.9,2534.8,0.39476]
[1729699683262,0.39478,2534.7,2534.6,40.8]
[1729699683456,0.39486,2534.2,2533.9,4.094]
[1729699683666,0.39486,2534.2,2534.1,3.47487]
[1729699683961,4.52751658,2534.2,2534.1,43.88]
[1729699684356,4.52751658,2534.2,2534.1,3.08]
[1729699687865,0.39488,2534.0,2533.9,40.8]
[1729699688064,0.39488,2534.0,2533.9,41.1949]
[1729699688265,4.79707575,2534.0,2533.9,41.1949]
[1729699688567,4.79707575,2534.0,2533.9,0.3949]
[1729699688764,4.40219575,2534.0,2533.8,3.2078]
[1729699689070,0.3949,2533.9,2533.8,44.4027]
[1729699689573,0.3949,2534.0,2533.9,0.39489]
[1729699689874,0.39488,2534.1,2534.0,0.39487]
[1729699690064,4.90583653,2534.2,2534.1,0.39487]
[1729699690371,4.60444898,2534.2,2534.1,0.39487]
[1729699691263,0.39489,2534.1,2534.0,0.39488]
[1729699691461,0.3949,2534.0,2533.9,0.39489]
[1729699691765,4.64826689,2534.0,2533.9,0.39489]
[1729699692865,4.25336689,2534.0,2533.9,0.39489]
[1729699693361,0.39487,2534.2,2534.1,0.39485]
[1729699693565,0.39487,2534.2,2534.1,3.2078]
[1729699693868,0.39487,2534.2,2533.8,41.19492]
[1729699693869,0.3949,2533.9,2533.8,41.19492]
[1729699694171,0.3949,2533.9,2533.8,40.8]
[1729699694172,4.92266607,2533.9,2533.8,40.8]
[1729699695577,8.86906607,2533.9,2533.8,40.8]
[1729699695875,0.39495,2533.6,2533.5,3.60276]
[1729699696270,0.39495,2533.6,2533.5,44.40276]
[1729699696670,0.39494,2533.7,2533.6,0.39493]
[1729699696976,3.53803,2533.8,2533.7,0.39493]
[1729699697368,7.90429111,2533.8,2533.7,0.39493]
[1729699697564,0.39494,2533.7,2533.6,0.39494]
[1729699697785,0.39495,2533.6,2533.5,3.60275]
[1729699698070,4.76120111,2533.7,2533.6,0.39494]
[1729699698899,0.39495,2533.6,2533.5,0.39495]
[1729699699173,0.39495,2533.6,2533.5,3.2078]
[1729699699376,0.39498,2533.5,2533.4,0.39496]
[1729699699773,4.92332999,2533.5,2533.4,0.39496]
[1729699700578,3.1431,2533.8,2533.3,43.88]
[1729699700876,0.39496,2533.6,2533.5,3.60274]
[1729699701773,0.39495,2533.6,2533.5,3.60274]
[1729699702174,0.39495,2533.6,2533.5,0.39494]
[1729699703078,4.84756276,2533.7,2533.6,0.39495]
[1729699703283,4.45262276,2533.7,2533.3,43.88]
[1729699703579,0.39495,2533.6,2533.5,0.39495]
[1729699703975,4.84756276,2533.7,2533.6,0.39495]
[1729699705577,4.45262276,2533.7,2533.3,41.78749]
[1729699705774,0.39495,2533.6,2533.5,0.39495]
[1729699706082,4.45262276,2533.7,2533.6,0.39495]
[1729699706678,4.45262276,2533.7,2533.6,4.34215]
[1729699706982,3.1867,2534.3,2534.2,0.39485]
[1729699707385,7.36741287,2534.3,2534.2,0.39485]
[1729699707974,7.76225287,2534.3,2534.2,0.39485]
[1729699708382,7.76225287,2534.3,2534.1,4.2095]
[1729699708383,0.39485,2534.2,2534.1,3.2078]
[1729699708686,0.39487,2534.1,2534.0,0.39488]
[1729699709069,0.39489,2534.0,2533.9,0.39489]
[1729699709275,4.55691047,2534.2,2534.1,0.39487]
[1729699709676,3.2078,2535.1,2534.1,0.39487]
[1729699709677,3.146,2535.0,2534.3,0.98708]
[1729699709877,0.39475,2534.9,2534.4,1.99984]
[1729699710074,0.39475,2534.9,2534.8,0.39476]
[1729699710279,4.39095374,2534.8,2534.7,0.39476]
[1729699710585,4.75957058,2534.9,2534.7,3.2078]
[1729699710781,3.146,2535.0,2534.7,3.2078]
[1729699710981,4.39095374,2534.8,2534.7,3.60256]
[1729699711282,0.39475,2534.9,2534.7,3.60256]
[1729699711283,4.78570374,2534.9,2534.7,3.60256]
[1729699711483,3.54074,2535.0,2534.8,0.39475]
[1729699711782,4.52821622,2534.9,2534.8,0.39475]
[1729699711974,4.52821622,2534.9,2534.7,3.60256]
[1729699712580,0.39476,2534.8,2534.7,3.2078]
[1729699712780,7.60822622,2534.9,2534.7,3.60257]
[1729699712979,4.62554605,2534.8,2534.6,0.39478]
[1729699713277,4.23078605,2534.8,2534.7,3.60258]
[1729699713484,4.62555605,2534.8,2534.6,0.39478]
[1729699713695,4.62555605,2534.8,2534.7,0.39478]
[1729699713880,4.62555605,2534.8,2534.6,3.60258]
[1729699714577,4.62555605,2534.8,2534.7,0.39478]
[1729699714982,4.23078605,2534.8,2534.6,3.2078]
[1729699715186,0.39481,2534.5,2534.4,1.40761]
[1729699715386,4.23078605,2534.8,2534.4,4.2206]
[1729699715583,4.23078605,2534.8,2534.4,45.0206]
[1729699715774,0.39481,2534.5,2534.4,45.41541]
[1729699715979,0.3948,2534.6,2534.5,0.3948]
[1729699716381,4.23078605,2534.8,2534.4,4.2206]
[1729699716577,0.3948,2534.6,2534.5,0.3948]
[1729699718287,0.39481,2534.5,2534.4,4.61541]
[1729699718488,4.23078605,2534.8,2534.4,4.2206]
[1729699718687,4.06688,2534.9,2534.5,0.3948]
[1729699718688,0.3948,2534.6,2534.5,0.3948]
[1729699718892,0.39481,2534.5,2534.4,4.61542]
[1729699719093,0.39481,2534.5,2534.4,0.39482]
[1729699719094,1.44121,2534.5,2534.4,0.39482]
[1729699719386,5.64838665,2534.5,2534.4,0.39482]
[1729699719586,6.65518665,2534.5,2534.4,0.39482]
[1729699721289,6.65518665,2534.5,2534.4,3.60262]
[1729699721894,0.39485,2534.3,2534.2,0.39485]
[1729699722388,4.88572381,2534.3,2534.2,0.39485]
[1729699722584,4.49088381,2534.3,2534.2,3.47485]
[1729699722890,4.49088381,2534.3,2534.2,6.68265]
[1729699724594,0.3948,2534.6,2534.5,0.39481]
[1729699724787,0.3948,2534.6,2534.5,3.60261]
[1729699725093,0.3948,2534.6,2534.5,0.39481]
[1729699725094,4.61604015,2534.6,2534.5,0.39481]
[1729699725293,0.39482,2534.5,2534.4,0.39481]
[1729699725500,0.39485,2534.3,2534.2,0.39484]
[1729699725791,1.41084,2534.4,2534.3,0.39484]
[1729699726094,5.5669813,2534.4,2534.3,0.39484]
[1729699728094,5.5669813,2534.4,2533.6,0.39493]
[1729699728095,0.39494,2533.7,2533.6,0.39493]
[1729699728291,0.39492,2533.8,2533.5,0.39496]
[1729699728590,0.39492,2533.8,2533.3,4.2352]
[1729699728591,0.39497,2533.5,2533.3,1.0274]
[1729699728785,0.39498,2533.4,2533.3,0.39499]
[1729699728987,4.40743864,2533.4,2533.3,0.39499]
[1729699729191,0.39498,2533.4,2533.0,7.3152]
[1729699729488,0.395,2533.3,2533.2,0.39501]
[1729699729693,4.4724747,2533.4,2533.0,4.1074]
[1729699729994,0.395,2533.3,2533.2,0.39501]
[1729699730591,0.395,2533.3,2533.0,4.1074]
[1729699730592,4.17861636,2533.3,2533.0,4.1074]
[1729699730792,4.17861636,2533.3,2532.8,3.08]
[1729699731000,0.98743,2533.5,2533.0,0.39503]
[1729699731001,4.17861636,2533.5,2533.0,0.39503]
[1729699731294,0.39502,2533.2,2532.8,3.08]
[1729699731493,0.39502,2533.2,2533.1,0.39502]
[1729699731795,0.39502,2533.2,2532.8,3.08]
[1729699731796,4.95638335,2533.2,2532.8,3.08]
[1729699732097,4.56136335,2533.2,2533.1,3.60282]
[1729699732287,4.56136335,2533.2,2533.1,0.39502]
[1729699732493,4.56136335,2533.2,2533.1,3.60282]
[1729699732798,4.95637335,2533.2,2533.1,3.60282]
[1729699732994,4.56136335,2533.2,2533.1,0.39502]
[1729699733188,4.95637335,2533.2,2533.1,3.2078]
[1729699733493,4.95637335,2533.2,2533.1,0.39502]
[1729699733696,4.56136335,2533.2,2533.0,3.08]
[1729699733902,4.56136335,2533.2,2533.1,0.39502]
[1729699734196,0.39502,2533.2,2533.0,3.47503]
[1729699734899,4.16323656,2533.1,2533.0,3.47503]
[1729699735093,4.16323656,2533.1,2533.0,6.68283]
[1729699735398,0.39501,2533.2,2533.1,0.39502]
[1729699735895,4.41074742,2533.2,2533.1,3.60282]
[1729699736997,1.0606,2533.6,2533.3,0.39498]
[1729699737297,4.37535827,2533.5,2533.1,3.2078]
[1729699737501,0.39501,2533.3,2533.2,0.395]
[1729699737799,0.39499,2533.4,2533.3,0.39498]
[1729699737994,4.37535827,2533.5,2533.1,3.2078]
[1729699738196,4.37535827,2533.5,2533.4,0.39498]
[1729699738905,4.77031827,2533.5,2533.4,41.19498]
[1729699739095,4.37535827,2533.5,2533.4,41.19498]
[1729699739297,4.77031827,2533.5,2533.4,41.19498]
[1729699739503,4.37535827,2533.5,2533.4,41.19498]
[1729699740101,4.77031827,2533.5,2533.4,41.19498]
[1729699740401,4.37535827,2533.5,2533.4,41.19498]
[1729699741394,2.51704,2533.7,2533.6,0.39495]
[1729699741596,0.39496,2533.6,2533.5,0.39495]
[1729699741802,0.39496,2533.5,2533.4,41.19497]
[1729699742000,6.46741603,2533.7,2533.4,40.8]
[1729699742301,0.39496,2533.6,2533.5,0.39495]
[1729699742498,4.56711503,2533.6,2533.4,40.8]
[1729699742703,0.39496,2533.5,2533.4,40.8]
[1729699742906,0.39496,2533.5,2533.4,41.19498]
[1729699743196,0.39496,2533.5,2533.4,40.8]
[1729699743399,4.74247763,2533.5,2533.4,40.8]
[1729699743593,4.74247763,2533.5,2533.4,41.19498]
[1729699743795,4.34751763,2533.5,2533.4,41.19498]
[1729699743996,4.74247763,2533.5,2533.4,41.19498]
[1729699744198,0.39496,2533.5,2533.4,41.19498]
[1729699744399,4.78412036,2533.5,2533.4,41.19498]
[1729699745599,4.38916036,2533.5,2533.4,41.19498]
[1729699745904,0.39496,2533.5,2533.4,41.19498]
[1729699746102,4.12635997,2533.6,2533.4,40.8]
[1729699746302,4.52131997,2533.5,2533.4,0.39497]
[1729699746497,0.39496,2533.5,2533.4,0.39497]
[1729699746904,4.86926161,2533.5,2533.4,0.39497]
[1729699748107,0.39499,2533.4,2533.3,0.39498]
[1729699748312,0.39499,2533.4,2533.2,40.8]
[1729699748313,0.39499,2533.3,2533.2,41.19499]
[1729699748513,1.49609,2533.3,2533.2,41.19499]
[1729699749001,5.24959186,2533.3,2533.2,41.19499]
[1729699750612,4.14849186,2533.3,2533.2,45.14219]
[1729699750905,0.39495,2533.6,2533.5,0.39495]
[1729699751110,3.1857,2533.7,2533.6,0.39495]
[1729699751111,3.58064,2533.7,2533.6,0.39495]
[1729699751509,5.46754283,2533.7,2533.6,0.39495]
[1729699752008,4.40394283,2533.7,2533.6,0.39495]
[1729699752211,1.97372,2535.0,2533.6,0.39495]
[1729699752212,0.39486,2534.2,2533.8,0.98728]
[1729699752417,4.19485,2534.5,2534.2,0.39483]
[1729699752418,0.39485,2534.3,2534.2,0.39483]
[1729699752623,0.39485,2534.3,2534.2,3.60263]
[1729699752823,0.78243528,2534.3,2534.2,3.60263]
[1729699753113,1.42863,2534.4,2534.3,0.39484]
[1729699753305,1.42863,2534.4,2534.3,3.60264]
[1729699753506,1.0338,2534.4,2534.3,0.39484]
[1729699754011,1.42862,2534.4,2534.3,3.60264]
[1729699754611,1.0338,2534.4,2534.3,3.60264]
[1729699754907,0.39479,2534.6,2534.5,0.39481]
[1729699755110,1.0518,2534.8,2534.3,3.2078]
[1729699755313,1.0518,2534.8,2534.2,4.06711]
[1729699755314,0.3948,2534.6,2534.5,0.3948]
[1729699755715,0.3948,2534.6,2534.5,4.3404]
[1729699756218,6.55119101,2534.8,2534.5,3.9456]
[1729699756414,0.98696,2534.7,2534.0,7.2919]
[1729699756617,0.39481,2534.5,2534.4,0.39481]
[1729699756915,4.693494,2534.5,2534.4,0.39481]
[1729699757215,4.693494,2534.5,2534.4,40.8]
[1729699757410,0.39479,2534.7,2534.6,0.39479]
[1729699757616,2.1188,2534.8,2534.4,40.8]
[1729699757811,0.3948,2534.6,2534.5,0.3948]
[1729699758417,0.39481,2534.5,2534.4,41.19481]
[1729699758617,0.3948,2534.6,2534.5,0.39479]
[1729699759823,0.39482,2534.5,2534.4,0.39482]
[1729699760127,4.36139065,2534.7,2534.3,44.0078]
[1729699761020,0.39481,2534.5,2534.4,0.39481]
[1729699761221,4.36139065,2534.7,2534.3,44.0078]
[1729699761428,0.3948,2534.6,2534.5,0.39479]
[1729699762125,4.36139065,2534.7,2534.3,44.0078]
[1729699762325,4.36139065,2534.7,2534.4,0.39482]
[1729699762520,4.36139065,2534.7,2534.3,44.40262]
[1729699762521,0.39482,2534.4,2534.3,44.40262]
[1729699762720,0.39482,2534.4,2534.3,44.40263]
[1729699763026,4.36139065,2534.7,2534.3,47.9534]
[1729699763227,0.39482,2534.5,2534.4,0.39482]
[1729699764025,4.36139065,2534.7,2534.3,44.0078]
[1729699764221,0.39482,2534.5,2534.4,0.39481]
[1729699764717,4.36139065,2534.7,2534.3,44.0078]
[1729699765021,4.36139065,2534.7,2534.5,0.3948]
[1729699765022,0.3948,2534.6,2534.5,0.3948]
[1729699765320,0.39481,2534.5,2534.4,0.39481]
[1729699765924,4.36139065,2534.7,2534.3,44.0078]
[1729699766125,4.36139065,2534.7,2534.6,0.39479]
[1729699766623,3.2078,2534.9,2534.8,0.39476]
[1729699766829,0.27464653,2535.0,2534.9,0.39474]
[1729699767018,3.2078,2535.6,2534.9,7.1526]
[1729699767225,1.97256,2536.5,2535.4,3.08]
[1729699767226,0.39465,2535.5,2535.4,3.08]
[1729699767433,4.84640681,2535.5,2535.4,3.08]
[1729699767621,0.39468,2535.4,2535.3,0.39468]
[1729699767922,4.45175681,2535.6,2535.2,3.08]
[1729699768125,0.39466,2535.5,2535.4,0.39465]
[1729699768324,0.39467,2535.4,2535.3,41.19467]
[1729699768518,0.39467,2535.4,2535.3,40.8]
[1729699768723,0.39467,2535.4,2535.3,41.19468]
[1729699768925,0.39465,2535.5,2535.3,41.19467]
[1729699769124,0.39467,2535.4,2535.3,41.19467]
[1729699769529,4.45175681,2535.6,2535.3,40.8]
[1729699769721,0.39467,2535.4,2535.3,41.19468]
[1729699769927,4.45175681,2535.6,2535.3,40.8]
[1729699770123,0.39467,2535.5,2535.4,0.39467]
[1729699770431,4.45175681,2535.6,2535.3,41.19468]
[1729699770730,0.39466,2535.5,2535.4,0.39466]
[1729699771038,0.39465,2535.5,2535.3,41.19467]
[1729699771238,0.39465,2535.5,2535.3,40.8]
[1729699771532,0.39465,2535.5,2535.4,3.60246]
[1729699771835,0.39465,2535.5,2535.4,3.60247]
[1729699772332,4.06649,2535.9,2535.4,3.60247]
[1729699772333,0.98629,2536.4,2535.9,0.39459]
[1729699772534,9.876,2537.4,2535.9,0.39459]
[1729699772535,3.2078,2536.9,2535.9,3.47459]
[1729699772739,3.2078,2536.9,2535.9,7.41779]
[1729699773029,0.39446,2536.8,2535.9,8.48339]
[1729699773222,19.44264952,2536.0,2535.9,49.28339]
[1729699773422,15.07091876,2536.0,2535.9,49.28339]
[1729699773625,1.074,2537.0,2535.9,51.9688]
[1729699773823,0.39441,2537.1,2536.8,3.2078]
[1729699774023,0.39439,2537.2,2537.0,0.39441]
[1729699774238,2.0975,2537.4,2536.8,3.60224]
[1729699774239,0.39442,2537.0,2536.8,3.60224]
[1729699774444,4.33587124,2537.3,2536.8,3.2078]
[1729699774932,0.39449,2536.6,2536.4,0.3945]
[1729699775137,3.2078,2536.9,2536.4,0.3945]
[1729699775328,0.39449,2536.6,2536.4,0.39451]
[1729699775527,1.0051,2536.8,2536.1,3.2078]
[1729699775528,3.08,2536.7,2536.1,3.2078]
[1729699775837,0.39454,2536.2,2536.1,3.2078]
[1729699776333,6.28747265,2536.2,2535.7,3.2078]
[1729699776538,0.3946,2535.9,2535.7,3.2078]
[1729699776731,0.3946,2535.9,2535.7,3.60242]
[1729699777833,0.3946,2535.8,2535.7,3.2078]
[1729699778041,0.3946,2535.8,2535.4,6.2878]
[1729699778042,4.1464309,2535.8,2535.4,6.2878]
[1729699778230,4.1464309,2535.8,2535.4,3.2078]
[1729699778535,1.0791,2535.7,2535.4,3.2078]
[1729699778736,0.39465,2535.5,2535.4,3.2078]
[1729699779235,4.80837351,2535.5,2535.4,3.2078]
[1729699779435,4.06654,2535.8,2535.4,3.2078]
[1729699779436,0.98641,2536.1,2535.4,10.2318]
[1729699779742,0.39461,2535.8,2535.6,0.39462]
[1729699780037,1.0984,2536.0,2535.8,0.3946]
[1729699780225,1.0984,2536.0,2535.7,0.39461]
[1729699780226,0.3946,2535.9,2535.7,0.39461]
[1729699780429,1.49298,2536.0,2535.8,3.4746]
[1729699781041,1.0984,2536.0,2535.8,3.08]
[1729699781334,0.39459,2535.9,2535.8,3.08]
[1729699781539,1.49298,2536.0,2535.8,3.47459]
[1729699782732,1.0984,2536.0,2535.8,3.08]
[1729699782936,0.39459,2535.9,2535.8,3.08]
[1729699783136,1.0984,2536.0,2535.4,3.2078]
[1729699783137,0.39462,2535.7,2535.6,3.08]
[1729699783939,0.39462,2535.7,2535.6,7.024]
[1729699784336,0.39462,2535.7,2535.6,3.08]
[1729699786041,0.39462,2535.7,2535.6,7.024]
[1729699786247,0.39462,2535.7,2535.6,3.08]
[1729699787937,0.39465,2535.5,2535.4,3.2078]
[1729699788144,0.39477,2534.8,2534.6,0.39478]
[1729699788349,0.39476,2534.8,2534.7,3.2078]
[1729699788542,0.39476,2534.8,2534.7,44.0078]
[1729699788741,4.06671,2535.3,2534.7,48.34737]
[1729699788941,0.3947,2535.2,2534.7,44.40257]
[1729699789236,4.25924133,2535.2,2534.8,0.39476]
[1729699789544,4.25924133,2535.2,2534.7,47.0878]
[1729699789745,0.39473,2535.1,2534.9,0.39474]
[1729699789943,2.02949,2535.4,2534.9,0.39474]
[1729699790139,0.39473,2535.0,2534.7,43.88]
[1729699790447,0.39474,2534.9,2534.8,3.60256]
[1729699790946,0.98676,2535.2,2534.7,40.8]
[1729699791147,0.39476,2534.8,2534.7,40.8]
[1729699793042,0.39476,2534.8,2534.7,44.7448]
[1729699793238,0.39476,2534.8,2534.7,40.8]
[1729699794850,0.39475,2534.9,2534.8,0.39476]
[1729699795054,2.04606,2535.2,2534.7,41.19476]
[1729699795349,0.39476,2534.9,2534.8,0.39476]
[1729699795743,0.39474,2534.9,2534.8,3.9448]
[1729699795942,4.2424359,2535.1,2534.8,3.9448]
[1729699796142,4.2424359,2535.1,2534.7,40.8]
[1729699796143,1.0593,2535.2,2534.7,43.88]
[1729699796355,1.45401,2535.2,2535.1,0.39471]
[1729699796943,3.2078,2535.3,2535.2,0.3947]
[1729699797144,1.0428,2535.4,2535.3,0.39468]
[1729699797449,1.0428,2535.4,2535.3,7.54648]
[1729699799550,1.43747,2535.4,2535.3,7.54648]
[1729699800049,1.43747,2535.4,2535.3,4.33868]
[1729699800457,1.43747,2535.4,2535.3,3.944]
[1729699800759,5.44491354,2535.4,2535.0,3.2078]
[1729699801052,0.39471,2535.1,2535.0,3.60252]
[1729699801553,1.0611,2535.3,2535.0,7.1526]
[1729699801749,0.39466,2535.5,2535.4,0.39466]
[1729699801951,0.39467,2535.4,2535.3,0.39467]
[1729699802156,0.39466,2535.5,2535.4,0.39466]
[1729699802552,0.39465,2535.6,2535.5,0.39465]
[1729699802753,2.0854,2535.8,2535.4,6.2878]
[1729699802970,1.0243,2535.8,2535.5,1.1047]
[1729699803149,5.4474145,2535.7,2535.2,0.39469]
[1729699803346,6.5111145,2535.7,2535.3,3.2078]
[1729699803550,0.39467,2535.4,2535.3,3.2078]
[1729699803955,3.944,2535.4,2534.8,3.2078]
[1729699804162,0.39478,2534.7,2534.6,0.39478]
[1729699804455,0.98687,2535.0,2534.6,40.8]
[1729699804661,2.094,2535.0,2534.6,40.8]
[1729699804856,1.0851,2534.9,2534.6,40.8]
[1729699805054,1.0851,2534.9,2534.6,41.19478]
[1729699805253,2.094,2535.0,2534.8,0.39475]
[1729699805753,3.2078,2535.1,2534.8,3.9448]
[1729699805953,3.2078,2535.1,2535.0,0.39473]
[1729699808484,3.2078,2535.1,2534.6,40.8]
[1729699808681,1.005,2535.0,2534.6,41.19478]
[1729699808879,1.0626,2534.9,2534.6,41.19478]
[1729699809177,1.0626,2534.9,2534.7,0.39477]
[1729699809380,1.0626,2534.9,2534.6,40.8]
[1729699809587,1.0626,2534.9,2534.7,0.39477]
[1729699810083,1.0626,2534.9,2534.6,41.19478]
[1729699810480,1.0626,2534.9,2534.7,0.39477]
[1729699810992,1.0626,2534.9,2534.6,40.8]
[1729699811181,1.0626,2534.9,2534.7,0.39477]
[1729699811779,1.0626,2534.9,2534.6,40.8]
[1729699811993,1.0626,2534.9,2534.6,41.19479]
[1729699812189,1.0626,2534.9,2534.7,0.39477]
[1729699812720,1.0626,2534.9,2534.6,40.8]
[1729699813272,1.0626,2534.9,2534.7,0.39477]
[1729699813584,1.0626,2534.9,2534.6,40.8]
[1729699813585,1.0626,2534.9,2534.8,0.39476]
[1729699813985,3.2078,2535.1,2535.0,0.39473]
[1729699814601,3.2078,2535.1,2534.6,41.19479]
[1729699814602,11.30915215,2535.1,2534.6,41.19479]
[1729699814783,1.1053,2535.0,2534.6,41.19479]
[1729699815078,1.1053,2535.0,2534.6,40.8]
[1729699815079,1.50003,2535.0,2534.6,40.8]
[1729699815273,4.47578378,2534.9,2534.6,40.8]
[1729699817463,0.39478,2534.7,2534.0,0.8644]
[1729699817758,4.36236575,2534.6,2534.2,0.39485]
[1729699817964,4.36236575,2534.6,2534.3,41.19484]
[1729699818268,1.1051,2534.5,2534.3,41.19484]
[1729699818661,4.57898255,2534.4,2534.3,41.19484]
[1729699818862,4.57898255,2534.4,2533.9,3.2078]
[1729699819061,1.0911,2534.3,2534.0,0.39488]
[1729699819564,1.0911,2534.3,2534.1,40.8]
[1729699819764,1.48595,2534.3,2534.1,40.8]
[1729699820064,4.32306856,2534.2,2533.8,0.39491]
[1729699820264,4.71792856,2534.2,2533.8,0.39491]
[1729699820560,4.32306856,2534.2,2533.8,3.79]
[1729699820765,1.0911,2534.3,2533.8,3.79]
[1729699820962,1.0911,2534.3,2534.1,0.39487]
[1729699821162,1.0911,2534.3,2534.2,0.39485]
[1729699821469,1.0911,2534.3,2533.9,1.051]
[1729699821772,1.0911,2534.3,2534.1,0.39486]
[1729699822064,1.0911,2534.3,2533.9,1.051]
[1729699822274,1.0911,2534.3,2534.0,0.39488]
[1729699822472,1.0911,2534.3,2533.9,0.39489]
[1729699822473,4.42771192,2534.2,2533.9,0.39489]
[1729699822664,0.39487,2534.1,2533.6,41.19495]
[1729699822864,1.0097,2534.0,2533.6,40.8]
[1729699823062,1.0097,2534.0,2533.7,0.39492]
[1729699823668,1.0097,2534.0,2533.6,40.8]